bitfinex/quotes_ETHUSD_20220120
["timestamp","ask_amount","ask_price","bid_price","bid_amount"]
[1642649563784,6.7526,3119.8,3118.8,2.3223646]
[1642649563785,0.00397897,3119.4,3118.8,2.3223646]
[1642649563980,0.00397897,3119.4,3118.6,4.71860386]
[1642649564280,0.00568424,3119.7,3118.7,1.0]
[1642649564480,0.00568424,3119.7,3118.8,3.93883464]
[1642649564679,0.00511581,3119.6,3118.9,1.0]
[1642649564881,0.00511581,3119.6,3119.0,2.32333334]
[1642649565080,0.1282,3119.7,3119.0,2.32333334]
[1642649565081,0.00454739,3119.5,3119.0,2.32333334]
[1642649565532,0.00397897,3119.4,3119.0,2.62333334]
[1642649565935,0.00625266,3119.8,3119.1,1.0]
[1642649566232,0.1282,3120.0,3119.2,2.55733258]
[1642649566233,0.00568424,3119.7,3119.2,2.55733258]
[1642649566431,0.00568424,3119.7,3119.2,2.68553258]
[1642649566633,0.00511581,3119.6,3119.3,1.0]
[1642649566934,0.00454739,3119.5,3119.3,1.6]
[1642649567231,0.00397897,3119.4,3119.3,1.6]
[1642649567632,0.00397897,3119.4,3119.3,2.9656713]
[1642649568034,0.00397897,3119.4,3119.3,3.9656713]
[1642649568437,0.00397897,3119.4,3119.3,1.6]
[1642649569036,0.00397897,3119.4,3119.3,0.6]
[1642649569281,0.00397897,3119.4,3119.2,0.7282]
[1642649569478,0.00397897,3119.4,3119.2,0.6]
[1642649569681,0.00397897,3119.4,3119.2,0.3]
[1642649570080,0.00397897,3119.4,3119.2,2.59474116]
[1642649570481,0.00397897,3119.4,3119.3,1.0]
[1642649570679,0.00397897,3119.4,3119.2,0.3]
[1642649571482,0.00397897,3119.4,3119.2,1.3]
[1642649572082,0.00397897,3119.4,3119.2,3.61425763]
[1642649572283,0.00397897,3119.4,3119.3,2.28123811]
[1642649572481,0.00397897,3119.4,3119.3,2.58123811]
[1642649572686,0.00397897,3119.4,3119.3,3.58123811]
[1642649574031,0.00397897,3119.4,3119.3,8.04132811]
[1642649575732,0.00397897,3119.4,3119.3,8.97067811]
[1642649577982,0.00397897,3119.4,3119.3,9.43667811]
[1642649578183,0.00397897,3119.4,3119.3,9.46999963]
[1642649578382,0.00397897,3119.4,3119.3,9.43667811]
[1642649578583,3.7814,3120.7,3119.4,4.85]
[1642649578785,3.7814,3120.7,3119.9,0.8011398]
[1642649578983,0.00682108,3120.6,3120.0,2.31148151]
[1642649579182,0.00682108,3120.6,3120.0,3.61148151]
[1642649579183,1.50099215,3120.6,3120.0,3.61148151]
[1642649579383,0.00625265,3120.5,3120.0,1.3]
[1642649579582,0.00625265,3120.5,3120.0,0.3]
[1642649579783,0.00568423,3120.4,3119.9,1.0]
[1642649579988,0.00568423,3120.4,3119.9,1.8011409]
[1642649580189,0.00511581,3120.3,3119.9,1.8011409]
[1642649580426,0.00511581,3120.3,3120.0,0.3]
[1642649580626,0.00454738,3120.2,3120.0,0.3]
[1642649580827,0.00454738,3120.2,3120.0,0.30120841]
[1642649581029,1.49417107,3120.6,3120.0,0.30120841]
[1642649581030,0.00397896,3120.1,3120.0,0.30120841]
[1642649584038,0.00397896,3120.1,3120.0,0.00120841]
[1642649585987,0.00397896,3120.1,3120.0,0.30120841]
[1642649586590,0.00397896,3120.1,3120.0,0.00120841]
[1642649587388,0.00397896,3120.1,3120.0,0.60120841]
[1642649588039,0.00397896,3120.1,3120.0,0.00120841]
[1642649589041,0.00397896,3120.1,3120.0,0.30120841]
[1642649589441,0.00397896,3120.1,3120.0,0.00120841]
[1642649593697,0.13217896,3120.1,3120.0,0.00120841]
[1642649593896,4.98217896,3120.1,3120.0,0.00120841]
[1642649594097,7.68157222,3120.1,3120.0,0.00120841]
[1642649596334,7.84035222,3120.1,3120.0,0.00120841]
[1642649596733,7.45328487,3120.1,3120.0,0.00120841]
[1642649597134,7.50804369,3120.1,3120.0,0.00120841]
[1642649597334,7.53435164,3120.1,3120.0,0.00120841]
[1642649598133,5.14095896,3120.1,3120.0,0.00120841]
[1642649598336,7.53014398,3120.1,3120.0,0.00120841]
[1642649598634,7.46084932,3120.1,3120.0,0.00120841]
[1642649599378,5.14095896,3120.1,3120.0,0.00120841]
[1642649599578,7.54572555,3120.1,3120.0,0.00120841]
[1642649600582,5.14011082,3120.1,3120.0,0.00120841]
[1642649601784,7.46819157,3120.1,3120.0,0.00120841]
[1642649603240,5.14011082,3120.1,3120.0,0.00120841]
[1642649604738,7.74603505,3120.1,3120.0,0.00120841]
[1642649606779,10.47448265,3120.1,3120.0,0.00120841]
[1642649607780,10.47448265,3120.1,3118.9,1.3]
[1642649607781,4.85,3120.0,3118.9,1.3]
[1642649607982,2.93679378,3119.9,3118.9,1.30120841]
[1642649608183,2.81058775,3119.9,3119.0,0.00312184]
[1642649608384,0.00142555,3119.8,3119.0,0.00433025]
[1642649608583,0.12962555,3119.8,3119.0,0.30433025]
[1642649608785,0.00085713,3119.7,3119.1,0.00255341]
[1642649609082,0.00085713,3119.7,3119.1,0.00376182]
[1642649609083,1.11289889,3119.6,3119.1,0.00376182]
[1642649609484,1.11289889,3119.6,3119.2,0.00198499]
[1642649609685,1.11289889,3119.6,3119.2,0.0031934]
[1642649610087,1.11289889,3119.6,3119.3,0.00141657]
[1642649610434,1.11289889,3119.6,3119.3,0.00262498]
[1642649610834,1.11289889,3119.6,3119.4,0.00084814]
[1642649611032,1.11289889,3119.6,3119.4,0.00205655]
[1642649614282,0.00085713,3119.7,3119.4,0.00205655]
[1642649616282,1.18022172,3119.7,3119.4,0.00205655]
[1642649621882,0.00085713,3119.7,3119.4,0.00205655]
[1642649623887,0.00085713,3119.7,3119.4,0.80337445]
[1642649624086,0.00085713,3119.7,3119.4,1.10337445]
[1642649624286,0.00085713,3119.7,3119.5,0.3]
[1642649624487,0.00085713,3119.7,3119.5,0.00120841]
[1642649628937,3.6117,3119.9,3119.7,0.00015773]
[1642649629177,3.6117,3119.9,3119.7,0.00136614]
[1642649630283,5.00955712,3119.9,3119.7,0.00136614]
[1642649634739,3.6117,3119.9,3119.7,0.00136614]
[1642649638284,4.81062523,3119.9,3119.7,0.00136614]
[1642649641446,3.6117,3119.9,3119.7,0.00136614]
[1642649641647,0.1282,3120.1,3119.7,0.00136614]
[1642649641854,3.6767,3120.4,3119.7,0.00136614]
[1642649642047,0.00170527,3120.0,3119.7,0.00136614]
[1642649642446,0.00113684,3119.9,3119.7,0.00136614]
[1642649642848,0.00341054,3120.3,3120.0,1.55271798]
[1642649643046,0.00341054,3120.3,3120.0,1.30120841]
[1642649643246,0.00284211,3120.2,3120.0,1.30120841]
[1642649643447,0.00284211,3120.2,3120.0,0.30120841]
[1642649643646,3.6767,3120.4,3120.0,0.30120841]
[1642649643647,0.00227369,3120.1,3120.0,1.30120841]
[1642649643850,0.00227369,3120.1,3120.0,0.30120841]
[1642649644047,0.00227369,3120.1,3120.0,1.30120841]
[1642649644284,0.00227369,3120.1,3120.0,2.65120841]
[1642649644488,0.00227369,3120.1,3120.0,3.65120841]
[1642649647192,0.00227369,3120.1,3120.0,1.30120841]
[1642649647944,0.00227369,3120.1,3120.0,0.00120841]
[1642649648140,0.00227369,3120.1,3120.0,0.30120841]
[1642649648340,0.00227369,3120.1,3120.0,0.00120841]
[1642649649443,0.00143712,3120.1,3120.0,0.00120841]
[1642649666782,0.12963712,3120.1,3120.0,0.00120841]
[1642649666984,4.37963712,3120.1,3120.0,0.00120841]
[1642649667185,9.85239569,3120.1,3120.0,0.00120841]
[1642649669384,7.45868233,3120.1,3120.0,0.00120841]
[1642649669585,10.18729819,3120.1,3120.0,0.00120841]
[1642649671233,10.05909819,3120.1,3120.0,0.00120841]
[1642649671435,10.18729819,3120.1,3120.0,0.00120841]
[1642649671833,9.85272437,3120.1,3120.0,0.00120841]
[1642649672834,9.72452437,3120.1,3120.0,0.00120841]
[1642649674985,6.99590851,3120.1,3120.0,0.00120841]
[1642649675185,4.25143712,3120.1,3120.0,0.00120841]
[1642649675585,4.25055709,3120.1,3120.0,0.00120841]
[1642649677490,0.00055709,3120.1,3120.0,0.00120841]
[1642649678937,2.35055709,3120.1,3120.0,0.00120841]
[1642649679139,7.41354691,3120.1,3120.0,0.00120841]
[1642649679539,0.00055709,3120.1,3120.0,0.00120841]
[1642649679739,0.28698,3120.3,3120.0,0.00120841]
[1642649679740,2.72843069,3120.2,3120.0,0.00120841]
[1642649680140,2.7295562,3120.2,3120.0,0.00120841]
[1642649680340,0.00112551,3120.2,3120.0,0.00120841]
[1642649683087,0.00112551,3120.2,3120.1,0.1282]
[1642649683285,0.00112551,3120.2,3120.1,0.12940841]
[1642649683486,0.00112551,3120.2,3120.1,0.00120841]
[1642649690587,0.00112551,3120.2,3120.1,0.00020051]
[1642649707588,2.30112551,3120.2,3120.1,0.00020051]
[1642649709642,0.00112551,3120.2,3120.1,0.00020051]
[1642649710044,0.128,3120.3,3120.1,0.00020051]
[1642649710244,3.2,3120.2,3120.1,0.00020051]
[1642649710645,5.92822846,3120.2,3120.1,0.00020051]
[1642649711247,5.92824824,3120.2,3120.1,0.00020051]
[1642649711679,3.2,3120.2,3120.1,0.00020051]
[1642649713585,5.92826964,3120.2,3120.1,0.00020051]
[1642649713790,5.92745335,3120.2,3120.1,0.00020051]
[1642649714387,8.35510721,3120.2,3120.1,0.00020051]
[1642649714786,8.51388721,3120.2,3120.1,0.00020051]
[1642649714987,9.10788721,3120.2,3120.1,0.00020051]
[1642649715938,10.62943258,3120.2,3120.1,0.00020051]
[1642649716341,9.10788721,3120.2,3120.1,0.00020051]
[1642649717742,10.10788721,3120.2,3120.1,0.00020051]
[1642649720787,17.7834825,3120.2,3120.1,0.00020051]
[1642649721988,12.69129567,3120.2,3120.1,0.00020051]
[1642649722599,16.78424213,3120.2,3120.1,0.00020051]
[1642649722790,12.69129567,3120.2,3120.1,0.00020051]
[1642649723636,12.56329567,3120.2,3120.1,0.00020051]
[1642649726541,13.56329567,3120.2,3120.1,0.00020051]
[1642649726788,13.69129567,3120.2,3120.1,0.00020051]
[1642649727792,36.54432696,3120.2,3120.1,0.00020051]
[1642649728593,32.45129567,3120.2,3120.1,0.00020051]
[1642649729195,36.54433653,3120.2,3120.1,0.00020051]
[1642649730939,32.45129567,3120.2,3120.1,0.00020051]
[1642649731138,36.54441808,3120.2,3120.1,0.00020051]
[1642649731938,18.76,3120.0,3119.7,0.00015773]
[1642649732140,17.79671701,3120.2,3119.7,0.00015773]
[1642649732141,18.76,3119.8,3119.7,0.00015773]
[1642649732337,22.08253888,3119.8,3119.7,0.00015773]
[1642649732540,23.24131888,3119.8,3119.7,0.00015773]
[1642649734507,4.48131888,3119.8,3119.7,0.00015773]
[1642649734808,7.04190723,3119.8,3119.7,0.00015773]
[1642649735007,6.93072175,3119.8,3119.7,0.00015773]
[1642649735207,26.89572175,3119.8,3119.7,0.00015773]
[1642649735810,8.13572175,3119.8,3119.7,0.00015773]
[1642649736109,27.23024113,3119.8,3119.7,0.00015773]
[1642649737208,8.47024113,3119.8,3119.7,0.00015773]
[1642649737408,6.02083826,3119.8,3119.7,0.00015773]
[1642649737809,3.29249938,3119.8,3119.7,0.00015773]
[1642649738051,5.7718057,3119.8,3119.7,0.00015773]
[1642649738252,8.16608122,3119.8,3119.7,0.00015773]
[1642649738452,8.16112042,3119.8,3119.7,0.00015773]
[1642649739252,26.92112042,3119.8,3119.7,0.00015773]
[1642649739456,26.79292042,3119.8,3119.7,0.00015773]
[1642649740253,8.03292042,3119.8,3119.7,0.00015773]
[1642649740453,8.05894182,3119.8,3119.7,0.00015773]
[1642649740653,26.84039477,3119.8,3119.7,0.00015773]
[1642649741690,24.3185749,3119.8,3119.7,0.00015773]
[1642649742292,5.5585749,3119.8,3119.7,0.00015773]
[1642649742493,8.03454952,3119.8,3119.7,0.00015773]
[1642649742794,8.05094636,3119.8,3119.7,0.00015773]
[1642649742992,5.5585749,3119.8,3119.7,0.00015773]
[1642649743194,29.77188484,3119.8,3119.7,0.00015773]
[1642649743393,29.47188484,3119.8,3119.7,0.00015773]
[1642649743593,27.77188484,3119.8,3119.7,0.00015773]
[1642649744698,25.3185749,3119.8,3119.7,0.00015773]
[1642649745736,29.4120232,3119.8,3119.7,0.00015773]
[1642649745942,25.3185749,3119.8,3119.7,0.00015773]
[1642649746544,29.41202098,3119.8,3119.7,0.00015773]
[1642649746742,29.41202129,3119.8,3119.7,0.00015773]
[1642649746942,29.4120216,3119.8,3119.7,0.00015773]
[1642649747143,25.3185749,3119.8,3119.7,0.00015773]
[1642649747542,24.3185749,3119.8,3119.7,0.00015773]
[1642649747743,19.5618,3119.4,3118.4,0.01]
[1642649747945,5.94217368,3119.3,3118.4,0.01]
[1642649748243,5.94217368,3119.3,3118.5,0.00853768]
[1642649748244,2.7287949,3119.2,3118.5,0.00853768]
[1642649748442,2.332609,3119.1,3118.5,0.00853768]
[1642649749292,1.4819714,3118.6,3118.5,0.00853768]
[1642649750297,3.91123808,3118.6,3118.5,0.00853768]
[1642649750496,1.4819714,3118.6,3118.5,0.00853768]
[1642649750695,4.6819714,3118.6,3118.5,0.00853768]
[1642649752699,3.2,3118.6,3118.5,0.00853768]
[1642649759501,3.2,3118.6,3118.0,1.14643768]
[1642649759704,3.35,3118.5,3118.0,1.14764615]
[1642649759903,3.35,3118.5,3118.1,0.0022737]
[1642649760101,3.35,3118.5,3118.1,0.00348223]
[1642649760545,3.35,3118.5,3118.2,0.00170527]
[1642649760742,3.35,3118.5,3118.2,0.0029138]
[1642649760743,2.31581995,3118.5,3118.2,0.0029138]
[1642649760941,5.64235493,3118.6,3118.2,0.0029138]
[1642649761140,3.3282,3118.6,3118.3,0.00113685]
[1642649761342,3.3282,3118.6,3118.3,0.00234538]
[1642649762544,5.63137042,3118.6,3118.3,0.00234538]
[1642649763546,3.3282,3118.6,3118.3,0.00234538]
[1642649763747,3.5,3118.6,3118.3,0.00234538]
[1642649765810,3.2,3118.6,3118.3,0.00234538]
[1642649768358,3.3282,3118.6,3118.3,0.00234538]
[1642649768757,3.2,3118.6,3118.3,0.00234538]
[1642649774999,3.2,3118.6,3118.3,0.80384538]
[1642649775447,3.2,3118.6,3118.4,0.3]
[1642649775640,3.2,3118.6,3118.4,0.30120856]
[1642649776246,3.2,3118.6,3118.4,0.00120856]
[1642649776444,3.2,3118.6,3118.4,0.30120856]
[1642649776944,3.2,3118.6,3118.4,0.60120856]
[1642649777344,3.2,3118.6,3118.4,1.60120856]
[1642649777544,3.2,3118.6,3118.5,3.91581688]
[1642649777746,3.2,3118.6,3118.5,1.44522557]
[1642649777947,3.2,3118.6,3118.5,2.44522557]
[1642649778344,3.2,3118.6,3118.5,1.39522557]
[1642649778546,3.2,3118.6,3118.5,2.39522557]
[1642649778748,3.2,3118.6,3118.5,2.26702557]
[1642649778947,3.2,3118.6,3118.5,3.32215943]
[1642649779193,3.2,3118.6,3118.5,2.26702557]
[1642649779999,3.2,3118.6,3118.5,1.26702557]
[1642649780297,3.2,3118.6,3118.5,2.26702557]
[1642649780795,3.2,3118.6,3118.5,1.26702557]
[1642649780996,3.2,3118.6,3118.5,2.26702557]
[1642649781399,3.2,3118.6,3118.5,1.26702557]
[1642649785144,3.2,3118.6,3118.5,0.00120869]
[1642649786044,3.2,3118.6,3118.5,0.30120869]
[1642649786245,3.2,3118.6,3118.5,0.30120892]
[1642649787089,3.2,3118.6,3118.5,1.30120892]
[1642649787491,3.2,3118.6,3118.5,0.30120892]
[1642649787691,3.2,3118.6,3118.5,1.30120892]
[1642649787892,3.2,3118.6,3118.5,1.60120892]
[1642649788095,3.2,3118.6,3118.5,0.60120892]
[1642649788294,3.2,3118.6,3118.5,1.30120892]
[1642649788795,3.2,3118.6,3118.5,0.30120892]
[1642649790196,3.2,3118.6,3118.5,0.00120892]
[1642649793052,3.2,3118.6,3118.5,0.16129892]
[1642649793552,3.2,3118.6,3118.5,10.47606976]
[1642649793751,3.2,3118.6,3118.5,8.77143435]
[1642649794051,7.61649902,3120.4,3119.0,0.80129]
[1642649794304,7.61649902,3120.4,3119.1,0.3]
[1642649794305,2.72826502,3120.3,3119.1,0.3]
[1642649794503,2.73849664,3120.3,3119.1,0.30120895]
[1642649794703,2.72826502,3120.2,3119.1,0.30120895]
[1642649795106,0.00909477,3120.1,3119.1,0.30120895]
[1642649795504,2.73690657,3120.0,3119.1,0.30120895]
[1642649795705,0.00852635,3120.0,3119.3,1.32223384]
[1642649795906,0.00795792,3119.9,3119.3,1.62344279]
[1642649796109,0.00795792,3119.9,3119.3,2.62344279]
[1642649796312,0.0073895,3119.8,3119.3,1.62344279]
[1642649796511,0.0073895,3119.8,3119.4,1.0]
[1642649796711,0.00682108,3119.7,3119.4,1.00120892]
[1642649796914,0.00682108,3119.7,3119.4,0.00120892]
[1642649797111,0.00625265,3119.6,3119.4,1.00120892]
[1642649797310,0.00625265,3119.6,3119.4,0.00120892]
[1642649797512,0.00568423,3119.5,3119.4,0.00120892]
[1642649797711,0.00568423,3119.5,3119.4,1.00120892]
[1642649798648,0.00568423,3119.5,3119.4,0.00120892]
[1642649798849,0.00568423,3119.5,3119.4,1.00120892]
[1642649799452,0.00568423,3119.5,3119.4,0.00120892]
[1642649799649,0.00568423,3119.5,3119.4,1.00120892]
[1642649799849,0.00568423,3119.5,3119.4,0.00120892]
[1642649801452,3.20568423,3119.5,3119.4,1.00120892]
[1642649801691,3.20568423,3119.5,3119.4,0.30120892]
[1642649801894,3.20568423,3119.5,3119.4,0.60120892]
[1642649802095,3.20568423,3119.5,3119.4,0.30120892]
[1642649805942,3.20568423,3119.5,3119.4,0.00120892]
[1642649815349,3.20568423,3119.5,3119.4,0.00120889]
[1642649818299,3.20475473,3119.5,3119.4,0.00120889]
[1642649828054,3.20475473,3119.5,3119.4,1.50808815]
[1642649829652,3.20475473,3119.5,3119.4,1.80808815]
[1642649830054,3.20475473,3119.5,3119.4,1.80808813]
[1642649830751,3.20475473,3119.5,3119.4,1.50808813]
[1642649831553,3.20475473,3119.5,3119.4,0.00120887]
[1642649832498,3.20475473,3119.5,3119.4,0.00120885]
[1642649834905,5.73298345,3119.5,3119.4,0.00120885]
[1642649835103,8.46161074,3119.5,3119.4,0.00120885]
[1642649835556,10.07019074,3119.5,3119.4,0.00120885]
[1642649835757,10.51068948,3119.5,3119.4,0.00120885]
[1642649835959,11.51068948,3119.5,3119.4,0.00120885]
[1642649836253,15.60304059,3119.5,3119.4,0.00120885]
[1642649836454,19.51534059,3119.5,3119.4,0.00120885]
[1642649836654,20.96724059,3119.5,3119.4,0.00120885]
[1642649837455,19.66724059,3119.5,3119.4,0.00120885]
[1642649837657,20.96724059,3119.5,3119.4,0.00120885]
[1642649838364,4.85,3119.4,3118.5,0.1282]
[1642649838561,4.85,3119.4,3118.5,0.12940885]
[1642649838562,0.80182,3119.2,3118.5,0.12940885]
[1642649838761,5.89353301,3119.1,3118.5,0.12940885]
[1642649838961,3.16738676,3119.1,3118.5,0.12940885]
[1642649839197,0.00191261,3119.0,3118.5,0.12940885]
[1642649839395,0.1282,3118.9,3118.5,0.12940885]
[1642649839595,0.12954419,3118.9,3118.5,0.12940885]
[1642649839795,1.48531078,3118.7,3118.5,0.12940885]
[1642649843152,3.3282,3118.6,3118.5,0.12940885]
[1642649843555,3.3282,3118.6,3118.5,0.13033835]
[1642649844253,1.48531078,3118.7,3118.5,0.13033835]
[1642649848003,0.1282,3118.8,3118.5,0.13033835]
[1642649850457,0.00134419,3118.9,3118.5,0.00213835]
[1642649851951,0.00134419,3118.9,3118.6,1.30096706]
[1642649852152,0.00134419,3118.9,3118.6,1.30217591]
[1642649852552,3.20134419,3118.9,3118.6,1.30217591]
[1642649853155,3.20134419,3118.9,3118.6,0.00120885]
[1642649869504,3.2,3118.9,3118.6,0.00120885]
[1642649869909,2.37363135,3118.8,3118.6,0.00120885]
[1642649871107,3.2,3118.9,3118.6,0.00120885]
[1642649871309,2.33963584,3118.8,3118.6,0.00120885]
[1642649871508,2.37216677,3118.8,3118.6,0.00120885]
[1642649871710,3.2,3118.9,3118.6,0.00120885]
[1642649872608,2.32383029,3118.8,3118.6,0.00120885]
[1642649872812,4.7782,3118.7,3118.6,0.00120885]
[1642649873658,4.7782,3118.7,3118.6,0.00120887]
[1642649875158,7.25395894,3118.7,3118.6,0.00120887]
[1642649875362,10.01279314,3118.7,3118.6,0.00120887]
[1642649875558,4.85,3118.6,3117.7,1.5358]
[1642649875859,2.60881297,3118.5,3117.8,0.00490847]
[1642649876058,0.1282,3118.4,3117.8,0.00490847]
[1642649876259,1.38949889,3118.3,3117.8,0.00490847]
[1642649876904,0.1282,3118.4,3117.8,0.00490847]
[1642649877105,0.1282,3118.4,3117.7,0.00547689]
[1642649877305,0.1282,3118.5,3117.7,0.00547689]
[1642649877708,2.48052216,3118.5,3117.7,0.00547689]
[1642649877906,2.5477862,3118.5,3117.7,0.00547689]
[1642649878107,1.15269831,3118.3,3117.7,0.00547689]
[1642649878509,1.15269831,3118.3,3117.6,0.00604532]
[1642649879308,0.1282,3118.5,3117.6,0.00604532]
[1642649880750,2.47184044,3118.5,3117.6,0.00604532]
[1642649881556,2.5283844,3118.5,3117.6,0.00604532]
[1642649882258,1.43839922,3118.0,3117.6,0.00604532]
[1642649882858,0.1282,3118.3,3117.6,0.00604532]
[1642649883660,2.51581568,3118.3,3117.6,0.00604532]
[1642649884201,1.17369902,3118.2,3117.6,0.00604532]
[1642649884905,0.1282,3118.3,3117.6,0.00604532]
[1642649886307,5.25932202,3118.4,3117.6,0.00604532]
[1642649888558,3.7756,3118.4,3117.6,1.3596735]
[1642649888959,3.7756,3118.4,3117.7,0.00547689]
[1642649889359,3.6474,3118.4,3117.7,0.00547689]
[1642649889763,1.40800488,3119.0,3118.1,1.17139454]
[1642649889960,1.27980488,3119.0,3118.1,1.17139454]
[1642649890161,1.27980488,3119.0,3118.2,0.00263477]
[1642649891163,0.1282,3119.2,3118.2,0.00263477]
[1642649891464,0.00191261,3119.0,3118.2,0.00263477]
[1642649891904,5.11,3119.3,3118.2,0.00263477]
[1642649891905,0.00134419,3118.9,3118.2,1.68094987]
[1642649892105,0.00134419,3118.9,3118.3,0.1282]
[1642649892304,10.6402,3119.7,3118.4,1.26741]
[1642649892305,3.2,3119.0,3118.4,1.26741]
[1642649892504,3.2,3119.0,3118.5,2.37417576]
[1642649892704,0.00134419,3118.9,3118.5,2.37510526]
[1642649892904,0.00134419,3118.9,3118.7,1.22072647]
[1642649893110,0.00134419,3118.9,3118.8,5.47609]
[1642649893307,0.00134419,3118.9,3118.8,5.316]
[1642649893508,0.00134419,3118.9,3118.8,6.616]
[1642649894609,0.00134419,3118.9,3118.8,8.25170729]
[1642649895010,0.00134419,3118.9,3118.8,6.7442]
[1642649895310,0.00134419,3118.9,3118.8,8.24388061]
[1642649895756,0.00134419,3118.9,3118.8,8.11568061]
[1642649895952,0.00134419,3118.9,3118.8,6.616]
[1642649896356,0.00134419,3118.9,3118.8,1.3]
[1642649896557,0.00134419,3118.9,3118.8,0.3]
[1642649896757,0.00134419,3118.9,3118.7,0.7282]
[1642649896958,0.00035426,3118.9,3118.8,1.0]
[1642649897157,0.00035426,3118.9,3118.7,0.6]
[1642649897458,0.00035426,3118.9,3118.7,0.3]
[1642649897656,0.00035426,3118.9,3118.5,1.7291295]
[1642649898057,0.00035426,3118.9,3118.6,0.00135101]
[1642649898858,0.00035426,3118.9,3118.6,0.30135101]
[1642649899304,0.00035426,3118.9,3118.6,0.00135101]
[1642649900306,0.00035426,3118.9,3118.6,0.30135101]
[1642649906066,0.00035426,3118.9,3118.6,3.50684461]
[1642649906261,0.00035426,3118.9,3118.6,5.10952461]
[1642649906461,0.00035426,3118.9,3118.7,1.3]
[1642649906728,0.00035426,3118.9,3118.8,5.01009]
[1642649906927,3.2,3119.0,3118.9,5.15]
[1642649907126,3.2,3119.0,3118.9,5.2782]
[1642649907328,0.1282,3119.7,3119.5,1.38310843]
[1642649907530,0.1282,3119.7,3119.5,2.20720843]
[1642649907726,0.1282,3119.7,3119.5,3.50720843]
[1642649907727,0.00397896,3119.6,3119.5,3.50720843]
[1642649907927,0.00397896,3119.6,3119.5,2.1241]
[1642649908131,0.00397896,3119.6,3119.5,2.4241]
[1642649910033,0.00397896,3119.6,3119.5,1.4241]
[1642649910332,0.00397896,3119.6,3119.5,0.3]
[1642649910553,0.00397896,3119.6,3119.4,4.0035139]
[1642649910955,0.00341054,3119.5,3119.4,3.2023239]
[1642649911158,0.00341054,3119.5,3119.4,2.2023239]
[1642649911355,0.00341054,3119.5,3119.4,3.2023239]
[1642649911556,0.00341054,3119.5,3119.4,2.2023239]
[1642649911955,0.00341054,3119.5,3119.4,3.2023239]
[1642649912155,0.00341054,3119.5,3119.4,2.2023239]
[1642649912356,0.00341054,3119.5,3119.4,3.2023239]
[1642649912658,0.00341054,3119.5,3119.4,1.6]
[1642649912856,0.00341054,3119.5,3119.4,0.6]
[1642649913055,0.00341054,3119.5,3119.3,0.3]
[1642649913056,3.20341054,3119.5,3119.3,0.3]
[1642649913257,3.20341054,3119.5,3119.2,1.7282]
[1642649913456,0.00284212,3119.4,3119.2,1.7282]
[1642649913661,0.00284212,3119.4,3119.2,0.7282]
[1642649913857,0.00227369,3119.3,3119.2,1.7282]
[1642649914057,0.00227369,3119.3,3119.2,1.4282]
[1642649914605,0.00227369,3119.3,3119.2,0.4282]
[1642649914811,0.00227369,3119.3,3119.2,0.1282]
[1642649916509,0.00227369,3119.3,3119.1,1.6]
[1642649916912,0.00170527,3119.2,3119.1,1.6]
[1642649917211,3.2,3119.5,3119.2,3.75]
[1642649917414,3.2,3119.5,3119.3,0.1282]
[1642649917613,0.00113685,3119.4,3119.3,1.1282]
[1642649917813,0.00113685,3119.4,3119.3,0.4282]
[1642649918057,0.00113685,3119.4,3119.3,0.58829]
[1642649918657,0.00113685,3119.4,3119.3,0.76009]
[1642649918861,0.00113685,3119.4,3119.3,0.6]
[1642649919060,0.00113685,3119.4,3119.1,1.7282]
[1642649919259,0.00113685,3119.4,3119.1,1.6]
[1642649919660,0.00113685,3119.4,3119.1,0.6]
[1642649919861,0.00113685,3119.4,3119.0,0.46009]
[1642649920060,0.00113685,3119.4,3119.0,0.3]
[1642649920262,0.00113685,3119.4,3118.9,0.1282]
[1642649920462,0.00113685,3119.4,3118.8,1.3]
[1642649920661,0.00113685,3119.4,3119.0,0.00113685]
[1642649920864,0.00113685,3119.4,3118.9,0.00170527]
[1642649921365,1.43132716,3119.4,3118.9,0.00170527]
[1642649922407,0.00113685,3119.4,3118.9,0.00170527]
[1642649924014,0.00113685,3119.4,3119.0,0.80134]
[1642649924412,0.00113685,3119.4,3119.1,0.3]
[1642649928164,0.00113685,3119.4,3119.0,0.3]
[1642649928464,0.00113685,3119.4,3118.9,0.60170527]
[1642649928863,0.00113685,3119.4,3119.0,0.00113685]
[1642649929067,0.00113685,3119.4,3119.0,0.30113685]
[1642649929306,2.72978298,3119.4,3119.0,0.30113685]
[1642649929507,2.41594206,3119.3,3119.0,0.30113685]
[1642649930006,2.41594206,3119.3,3119.0,0.00113685]
[1642649930207,0.1282,3119.2,3119.0,0.00113685]
[1642649930406,0.1282,3119.2,3118.7,0.00284212]
[1642649930609,0.1282,3119.3,3118.7,0.00284212]
[1642649931209,0.1282,3119.3,3118.5,0.00397896]
[1642649931410,0.1282,3119.3,3118.5,0.16406896]
[1642649931611,0.1282,3119.3,3118.5,0.60397896]
[1642649931809,0.1282,3119.3,3118.6,0.00341054]
[1642649932009,0.00113685,3119.4,3118.6,0.00341054]
[1642649933659,2.72962143,3119.4,3118.6,0.00341054]
[1642649935158,0.00113685,3119.4,3118.6,0.00341054]
[1642649935357,2.72958256,3119.4,3118.6,0.00341054]
[1642649937207,5.15579339,3119.4,3118.6,0.00341054]
[1642649937410,2.72854387,3119.3,3118.6,0.00341054]
[1642649938012,2.72774252,3119.3,3118.6,0.00341054]
[1642649938412,2.72774252,3119.3,3118.4,0.00454739]
[1642649939418,2.3604437,3119.2,3118.4,0.00454739]
[1642649939918,0.1282,3119.1,3118.4,0.00454739]
[1642649940118,0.466,3119.0,3118.4,0.00454739]
[1642649940317,0.1282,3118.9,3118.4,0.00454739]
[1642649941560,1.10889931,3118.5,3118.4,0.00454739]
[1642649944305,0.1282,3118.7,3118.4,0.00454739]
[1642649946706,1.22295281,3118.6,3118.4,0.00454739]
[1642649948760,0.1282,3118.7,3118.4,0.00454739]
[1642649948962,3.8081,3118.9,3118.4,0.00454739]
[1642649949964,0.1282,3119.2,3118.4,0.00454739]
[1642649950262,1.1997,3119.3,3118.5,0.1282]
[1642649950662,1.1997,3119.3,3118.6,0.00341054]
[1642649950962,1.1997,3119.3,3118.6,0.80483904]
[1642649951362,3.6381,3119.6,3118.8,1.1697475]
[1642649951562,3.6381,3119.6,3118.9,1.97352208]
[1642649951810,0.00170527,3119.5,3118.9,0.42990527]
[1642649952037,0.00170527,3119.5,3119.0,0.00113685]
[1642649952312,0.00113685,3119.4,3119.1,0.1282]
[1642649952711,0.00113685,3119.4,3119.1,2.41257564]
[1642649953012,0.00113685,3119.4,3119.1,2.71257564]
[1642649953213,0.00113685,3119.4,3119.1,3.41257564]